Cogmind - Beta 15 @@@ ROGUE MODE // 2025.09.17 @ 14:59:54 Player: shapeshifter Result: Destroyed by Alpha 7 with Enhanced Gamma Rifle Performance ------------- Evolutions (7) 3500 Regions Visited (22) 4400 Robots Destroyed (163) 815 Value Destroyed (6894) 6894 Prototype IDs (240) 4800 Alien Tech Used (6) 1200 Bonus (18293) 18293 TOTAL SCORE: 39902 Bonus ------- Triggered Max Security 1000 High Alert Combat Kills 3211 Follower Combat Kills 982 Entered DSFs 500 Aligned with FarCom 300 Met Data Miner 300 Used Data Conduit 3000 Used Core Reset Matrix 3000 Scanned by Researcher 500 Pursued by Intercept 500 Integrated Exoskeleton 5000 Cogmind --------- Core Integrity 0/1300 Matter 251/300 Energy 250/270 System Corruption 9% Temperature Cool (0) Movement Walking (30) Location -3/Section 7 Parts ------- > --- POWER (1) -------- Light Antimatter Reactor > --- PROPULSION (3) --- Sigix Exoskeleton > --- UTILITY (3) ------ Large Storage Unit Experimental Optical Array > --- WEAPON (2) ------- Sigix Shearcannon > --- INVENTORY (15) --- Light Quantum Reactor Light Quantum Reactor Experimental Heat Sink Experimental Core Analyzer ECM Suite Core Reset Matrix Sigix Sheargun Sigix Sheargun Sigix Sheargun Enhanced Nova Cannon Peak State ------------ > --- POWER ------------ Light Antimatter Reactor > --- PROPULSION ------- Sigix Exoskeleton > --- UTILITY ---------- Large Storage Unit Experimental Optical Array > --- WEAPON ----------- Sigix Shearcannon > --- INVENTORY -------- Light Quantum Reactor Light Quantum Reactor Experimental Heat Sink Experimental Core Analyzer ECM Suite Integrity Redistributor Integrity Redistributor Integrity Redistributor Core Reset Matrix Sigix Sheargun Sigix Sheargun Sigix Sheargun Enhanced Nova Cannon [Rating: 219] Favorites ----------- Power Ion Engine Engine Ion Engine Power Core Nuclear Core Reactor Antimatter Reactor Propulsion Improved Surge Thruster Treads Light Treads Leg Carbon-fiber Leg Wheel Compact Wheel Hover Unit Gravmag Array Flight Unit Improved Surge Thruster Utility Large Storage Unit Device Advanced Weight Redist. System Storage Large Storage Unit Processor Improved Signal Interpreter Hackware System Shield Protection Light Armor Plating Weapon Heavy Assault Rifle Energy Gun AWS/Thermal Energy Cannon Advanced Beam Cannon Ballistic Gun Heavy Assault Rifle Launcher Fusion Bomb Launcher Special Weapon Remote Datajack Slashing Weapon Great Axe Piercing Weapon Makeshift Spear Build | -11 -10 -10 -9 -9 -9 -8 -8 -7 -7 -7 -7 -6 -6 -6 -5 -5 -4 -4 -4 -3 -3 -3 ------- Run | Yrd Mat Min Mat Min Exi Min Mat Fac Low Low Dat Pro Fac Ext Fac DSF Fac Was Fac Res Qua Sec Slots Evolved 14 | . . . 2 . . . 2 2 . . . . 2 . 2 . 2 . . 2 . . Power 1 | . . . . . . . . . . . . . . . . . 1 . . . . . Propulsion 7 | . . . 1 . . . 1 1 . . . . 2 . . . 1 . . 1 . . Utility 6 | . . . 1 . . . 1 1 . . . . . . 2 . . . . 1 . . Weapon . | . . . . . . . . . . . . . . . . . . . . . . . Parts Attached 141 | 7 3 . 15 3 2 . 20 16 . 3 2 3 9 8 1 16 7 . 4 1 2 19 Power 14 | 1 . . 3 . . . 3 1 . . . 1 1 . . 1 1 . . . . 2 Engine 9 | 1 . . 3 . . . 2 1 . . . 1 1 . . . . . . . . . Core 1 | . . . . . . . 1 . . . . . . . . . . . . . . . Reactor 4 | . . . . . . . . . . . . . . . . 1 1 . . . . 2 Propulsion 53 | 2 . . 5 2 . . 5 6 . 1 2 . 6 3 . 13 1 . . . 2 5 Treads 6 | 2 . . 2 . . . 1 1 . . . . . . . . . . . . . . Leg 2 | . . . . . . . 2 . . . . . . . . . . . . . . . Wheel 6 | . . . 3 1 . . 2 . . . . . . . . . . . . . . . Hover 1 | . . . . . . . . . . . . . . . . . . . . . . 1 Flight 38 | . . . . 1 . . . 5 . 1 2 . 6 3 . 13 1 . . . 2 4 Utility 41 | 2 1 . 3 . 2 . 6 5 . 1 . 2 2 2 1 1 3 . 2 1 . 7 Device 15 | 1 . . . . . . 2 2 . . . . 2 1 1 . 2 . 2 1 . 1 Storage 6 | 1 1 . . . 1 . . 1 . 1 . . . . . . . . . . . 1 Processor 8 | . . . . . . . . 1 . . . 1 . . . 1 1 . . . . 4 Hackware 4 | . . . . . . . 1 . . . . 1 . 1 . . . . . . . 1 Protection 8 | . . . 3 . 1 . 3 1 . . . . . . . . . . . . . . Artifact . | . . . . . . . . . . . . . . . . . . . . . . . Weapon 33 | 2 2 . 4 1 . . 6 4 . 1 . . . 3 . 1 2 . 2 . . 5 Energy Gun 5 | . . . . . . . . . . . . . . . . 1 1 . . . . 3 Energy Cannon 5 | . . . 1 1 . . 1 . . . . . . . . . . . 1 . . 1 Ballistic Gun 13 | 2 2 . 2 . . . 5 1 . . . . . . . . 1 . . . . . Ballistic Cannon . | . . . . . . . . . . . . . . . . . . . . . . . Launcher 3 | . . . 1 . . . . . . 1 . . . . . . . . 1 . . . Special Weapon 3 | . . . . . . . . . . . . . . 2 . . . . . . . 1 Impact Weapon . | . . . . . . . . . . . . . . . . . . . . . . . Slashing Weapon 3 | . . . . . . . . 2 . . . . . 1 . . . . . . . . Piercing Weapon 1 | . . . . . . . . 1 . . . . . . . . . . . . . . Special Melee Weapon . | . . . . . . . . . . . . . . . . . . . . . . . Unidentified Prototypes 8 | . . . 2 . . . 1 . . . . . . . . . . . . . 1 4 Parts Lost 53 | . . 2 7 . . 1 4 1 . 2 2 1 2 3 . 9 2 . 2 2 11 2 Power 5 | . . . 1 . . . . . . 1 . . . . . 2 . . . 1 . . Propulsion 28 | . . 1 2 . . 1 2 1 . 1 1 1 2 2 . 4 2 . 1 1 5 1 Utility 16 | . . 1 1 . . . 2 . . . 1 . . 1 . 3 . . 1 . 6 . Weapon 4 | . . . 3 . . . . . . . . . . . . . . . . . . 1 Highest Loss Streak 10 | . . 1 3 . . 1 2 1 . 2 2 3 2 2 . 6 1 . 2 2 10 1 To Critical Strikes . | . . . . . . . . . . . . . . . . . . . . . . . Average Backups 12 | 3 7 9 13 14 16 18 18 17 14 13 12 13 11 13 14 11 4 5 5 4 4 7 Power . | . . . . . . . . . 1 1 1 2 2 2 2 1 . 1 . . . . Propulsion 3 | 1 2 2 2 6 7 7 6 6 3 2 1 1 . . 1 2 . . . . . . Utility 3 | . . . 1 3 4 5 7 5 5 4 4 3 4 7 8 5 2 1 1 2 2 2 Weapon 4 | . 5 7 8 4 4 5 4 3 4 4 4 5 4 3 3 1 . 2 3 2 1 2 Tool/Special . | . . . . . . . . . . . . . . . . . . . . . . . Unused Backups 40 | . 3 . 1 5 . . 12 2 . . . 2 1 3 . 5 2 . . . . 4 Power 3 | . 1 . . . . . . . . . . 1 . . . . . . . . . 1 Propulsion 11 | . . . . 2 . . 6 1 . . . . 1 . . 1 . . . . . . Utility 15 | . 1 . . 1 . . 3 . . . . 1 . 2 . 4 2 . . . . 1 Weapon 9 | . 1 . 1 2 . . 3 . . . . . . 1 . . . . . . . 1 Tool/Special 2 | . . . . . . . . 1 . . . . . . . . . . . . . 1 Average Slot Usage (%) 84 | . 100 86 70 99 100 98 88 85 100 91 87 78 86 97 88 71 82 73 76 56 34 49 Engine 6 | . 14 14 10 11 11 11 5 7 7 . . 1 6 6 5 3 . . . . . . Treads 6 | . 28 18 11 11 11 9 3 . . . . . . . . . . . . . . . Leg 1 | . . . . . . . 6 4 . . . . . . . . . . . . . 7 Wheel 6 | . . . 7 14 22 22 16 9 . . . . . . . . . . . . . . Flight 14 | . . . . 7 . . . 10 38 37 38 38 39 44 41 35 39 31 30 21 11 4 Device 10 | . 14 10 . . . . 10 9 15 15 13 7 16 11 11 19 26 26 30 25 17 4 Storage 9 | . 14 14 11 11 11 11 9 7 7 7 15 15 9 11 11 4 . . . . . 7 Processor 2 | . . . . . . . . 5 7 7 7 8 6 6 5 1 5 5 5 4 4 7 Hackware 2 | . . . . . . . 5 7 7 6 . . . 2 . . . . . . . . Protection 5 | . . . 7 22 22 22 10 5 . . . . . . . . . . . . . . Energy Cannon 4 | . . . 2 21 22 22 6 . . . . . . . . . . . . . . 4 Ballistic Gun 8 | . 28 28 19 . . . 11 8 . . . . . . . . 1 . . . . . Slashing Weapon 1 | . . . . . . . . 2 15 13 7 2 . 1 5 . . . . . . . Peak Build Rating 219 | 7 10 10 15 18 21 21 33 45 42 46 48 46 63 73 80 86 87 68 87 74 62 219 Average Rating 42 | 5 9 9 11 16 18 20 28 37 42 40 44 40 48 66 76 62 78 67 76 62 38 167 On Entrance 39 | . 7 10 8 15 18 21 20 32 42 42 42 45 40 61 73 80 76 67 68 65 54 16 Naked Turns . | . . . . . . . . . . . . . . . . . . . . . . . Heaviest Build 71 | 13 32 32 40 41 61 61 71 62 31 29 31 28 40 41 47 48 39 27 36 25 9 59 Greatest Support 60 | 40 40 40 40 28 28 28 48 32 32 31 31 28 46 48 48 48 42 33 37 29 16 60 Greatest Overweight (x) 4 | . . 1 2 3 2 2 4 3 . 1 1 . 1 . . 2 1 . 1 1 . 1 Average Overweight (x) . | . . . . 2 1 2 2 . . . . . . . . . . . . . . . Largest Inventory Capacity 20 | 8 15 15 15 15 20 20 20 20 15 15 15 15 15 15 15 20 5 5 5 5 5 15 Average Capacity 14 | 7 9 15 15 15 18 20 20 18 15 15 15 15 15 15 15 12 5 5 5 5 5 12 Most Carried 20 | 6 8 10 15 15 20 20 20 20 15 15 14 15 15 15 15 15 5 5 5 5 5 15 Average Carried 13 | 3 7 9 13 14 16 19 19 18 15 14 13 14 12 14 14 11 4 5 4 4 4 7 Final Capacity 20 | 8 15 15 15 15 20 20 20 15 15 15 15 15 15 15 15 5 5 5 5 5 5 15 Final Carried 20 | 5 8 10 15 15 19 20 20 15 15 14 13 15 13 15 13 4 5 5 5 5 5 10 Class Distribution -------------------- 63% | Mutant 10% | Sprinter 7% | Scavenger-Sprinter 7% | Scavenger-Mutant 6% | Commander-Sprinter 4% | Alien-Sigix Dominant Class ---------------- Mutant | -10/Materials Mutant | -10/Mines Mutant | -9/Materials Scavenger-Mutant | -9/Mines Mutant | -9/Exiles Mutant | -8/Mines Mutant | -8/Materials Mutant | -7/Factory Sprinter | -7/Lower Caves Mutant | -7/Lower Caves Sprinter | -7/Data Miner Sprinter | -6/Proximity Caves Sprinter | -6/Factory Commander-Sprinter | -6/Extension Sprinter | -5/Factory Sprinter | -5/DSF Scavenger-Sprinter | -4/Factory Scavenger-Sprinter | -4/Waste Scavenger-Sprinter | -4/Factory Scavenger-Mutant | -3/Research Mutant | -3/Quarantine Alien-Sigix | -3/Section 7 Resources | -11 -10 -10 -9 -9 -9 -8 -8 -7 -7 -7 -7 -6 -6 -6 -5 -5 -4 -4 -4 -3 -3 -3 ----------- Run | Yrd Mat Min Mat Min Exi Min Mat Fac Low Low Dat Pro Fac Ext Fac DSF Fac Was Fac Res Qua Sec Matter Collected 3393 | 286 62 59 518 61 . 36 433 218 164 70 14 140 15 434 . 235 85 . 57 . 1 505 Remotely . | . . . . . . . . . . . . . . . . . . . . . . . Salvage Created 7916 | 139 69 128 640 98 . 114 869 207 369 173 28 70 40 761 . 745 32 . 120 . . 3314 Parts 397 | 10 11 6 40 11 . 8 35 17 4 10 1 8 7 28 . 57 1 . 17 . . 126 Haulers Intercepted 7 | . . . 2 . . . 2 . . . . . . 3 . . . . . . . . Recyclers Shooed 2 | . . . . . . . 2 . . . . . . . . . . . . . . . Parts Field Recycled . | . . . . . . . . . . . . . . . . . . . . . . . Retrieved Matter . | . . . . . . . . . . . . . . . . . . . . . . . Parts Self-Destructed 9 | . . . . . . . . . 1 4 . 4 . . . . . . . . . . Prevented . | . . . . . . . . . . . . . . . . . . . . . . . Kills | -11 -10 -10 -9 -9 -9 -8 -8 -7 -7 -7 -7 -6 -6 -6 -5 -5 -4 -4 -4 -3 -3 -3 ------- Run | Yrd Mat Min Mat Min Exi Min Mat Fac Low Low Dat Pro Fac Ext Fac DSF Fac Was Fac Res Qua Sec Combat Hostiles Destroyed 120 | . 3 3 12 6 . 3 13 2 1 4 . 7 3 2 . 13 . . 6 . . 42 Melee 7 | . . . . . . . . 1 1 1 . 1 . 2 . 1 . . . . . . Guns 47 | . 3 3 10 1 . . 11 1 . . . . . . . 12 . . 1 . . 5 Cannons 46 | . . . 2 5 . 3 2 . . . . . . . . . . . . . . 34 AOE 20 | . . . . . . . . . . 3 . 6 3 . . . . . 5 . . 3 Classes Destroyed 27 | 2 2 2 3 . . . 1 1 2 1 . 1 . 1 . 4 . . . . . 7 Worker 6 | . 1 . . . . . . 3 . . . . 1 . . . . . . . . 1 Builder 6 | . . . . . . . . 2 . . . . . . . . . . 3 . . 1 Tunneler 3 | 2 . . 1 . . . . . . . . . . . . . . . . . . . Hauler 7 | . . . 2 . . . 2 . . . . . . 3 . . . . . . . . Recycler 7 | 1 . . . . . 1 3 . . . . . . 2 . . . . . . . . Carrier 1 | . . . . . . . . . . . . . . . . 1 . . . . . . Mechanic 2 | . . . . . . . 1 . . . . . . . . . . . . . . 1 Operator 2 | . . . . . . . . . . . . . . 2 . . . . . . . . Drone 1 | . . . . . . . . . . . . 1 . . . . . . . . . . Watcher 6 | . . . 1 . . . 2 . . . . . . 1 . . 1 . . . . 1 Swarmer 32 | . 3 . 3 6 . 3 . . . 3 . 6 3 . . . . . 5 . . . Cutter 11 | . . . . . . . . . . . . . . . . 11 . . . . . . Saboteur 4 | . . . . . . . . . . . . . . . . . . . . . . 4 Grunt 27 | . . 2 3 . . . 9 . . . . . . 1 . . . . . . . 12 Brawler 4 | . . . . . . . . . . . . . . . . . . . . . . 4 Duelist 4 | . . . 2 . . . . . . . . . . . . . . . . . . 2 Protector 1 | . . . . . . . . . . . . . . . . . . . . . . 1 Sentry 11 | . . 1 4 . . . 4 2 . . . . . . . . . . . . . . Specialist 1 | . . . . . . . . . . . . . . . . 1 . . . . . . Hunter 4 | . . . . . . . . . 1 . . . . . . . . . . . . 3 Programmer 5 | . . . . . . . . . . 1 . . . 1 . . . . 1 . . 2 Heavy 1 | . . . . . . . . . . . . . . . . 1 . . . . . . Behemoth 1 | . . . . . . . . . . . . . . . . . . . . . . 1 Tracker 1 | . . . . . . . . . . . . . . . . . . . . . . 1 Investigator 2 | . . . . . . . . . . . . . . . . . . . . . . 2 Striker 5 | . . . . . . . . . . . . . . . . . . . . . . 5 Executioner 7 | . . . . . . . . . . . . . . . . . . . . . . 7 Decomposer 1 | . . . . . . . . . 1 . . . . . . . . . . . . . Packrat 3 | . . . . . . . . . 3 . . . . . . . . . . . . . Samaritan 3 | . . . . . . . . . 1 2 . . . . . . . . . . . . Best Kill Streak 18 | 1 3 2 6 3 . 4 4 3 1 3 1 4 3 3 . 6 1 . 9 . . 18 Combat Bots Only 17 | . 3 2 6 3 . 3 3 1 1 3 . 3 3 1 . 6 . . 6 . . 17 Max Kills in Single Turn 5 | 1 1 1 1 1 . 2 2 1 1 2 1 3 3 1 . 1 1 . 5 . . 2 Gunslinging . | . . . . . . . . . . . . . . . . . . . . . . . Exploded 4 | . . . . . . . . . . 2 . 3 3 . . . . . 4 . . 1 Melee 1 | . . . . . . . . 1 1 1 . 1 . 1 . 1 . . . . . . Uniques/NPCs Destroyed 1 | . . . . . . . . . . . 1 . . . . . . . . . . . Data Miner (-7/Data Miner) Combat | -11 -10 -10 -9 -9 -9 -8 -8 -7 -7 -7 -7 -6 -6 -6 -5 -5 -4 -4 -4 -3 -3 -3 -------- Run | Yrd Mat Min Mat Min Exi Min Mat Fac Low Low Dat Pro Fac Ext Fac DSF Fac Was Fac Res Qua Sec Hostile Shots Fired 1168 | . 12 17 90 17 . 52 68 75 . 8 14 11 6 37 . 30 31 . 24 10 100 566 Missed 433 | . 2 7 25 3 . 18 16 28 . 2 6 3 1 18 . 12 14 . 13 4 62 199 Hits 735 | . 10 10 65 14 . 34 52 47 . 6 8 8 5 19 . 18 17 . 11 6 38 367 Melee 40 | . . . 11 . . . . . . . . . . . . 7 . . . . . 22 Projectile 695 | . 10 10 54 14 . 34 52 47 . 6 8 8 5 19 . 11 17 . 11 6 38 345 AOE 10 | . . . . . . . . . . . . . . . . 8 . . . . . 2 Critical Strikes 38 | . . . 4 . . 1 4 . . . . . . 2 . 3 . . 1 1 1 21 Part Disruptions 1 | . . . . . . . . . . . 1 . . . . . . . . . . . Damage Taken 11153 | . 76 398 1066 106 . 390 796 378 . 142 377 120 313 355 . 1200 463 . 176 80 748 3969 Core 3073 | . 27 117 240 22 . 54 116 21 . 16 239 27 131 97 . 297 33 . 41 . 347 1248 Absorbed by Shields 1067 | . . . . . . . 24 . . . . . . 72 . 4 . . . . . 967 Ignored by Resistances 4092 | . . . . . . . . . . . . . . . . . . . . . . 4092 Core Remaining (%) 66 | 100 . 42 . . . 21 78 . . . . 56 . 73 . 70 . . 93 . . . Volleys Fired 344 | 8 7 12 56 8 . 6 53 7 . 4 . 5 4 30 . . 9 . 13 1 1 120 Largest 2 | 2 2 2 2 2 . 2 2 2 . 1 . 1 1 1 . . 1 . 1 1 1 2 Hottest 225 | 40 46 46 91 136 . 136 136 56 . 33 . 33 33 5 . . 225 . 225 120 120 200 Shots Fired 577 | 16 14 24 108 16 . 12 106 14 . 4 . 5 4 30 . 38 13 . 13 1 1 158 Gun 381 | 16 14 24 101 5 . . 72 14 . . . . . . . 38 13 . 7 . . 77 Cannon 144 | . . . 6 11 . 12 34 . . . . . . . . . . . 4 1 1 75 Launcher 22 | . . . 1 . . . . . . 4 . 5 4 . . . . . 2 . . 6 Special 30 | . . . . . . . . . . . . . . 30 . . . . . . . . Kinetic 248 | 16 14 24 101 5 . . 72 14 . . . . . . . . 2 . . . . . Thermal 129 | . . . 6 11 . 12 34 . . . . . . . . 38 11 . 11 1 1 4 Explosive 22 | . . . 1 . . . . . . 4 . 5 4 . . . . . 2 . . 6 Electromagnetic . | . . . . . . . . . . . . . . . . . . . . . . . Slashing 148 | . . . . . . . . . . . . . . . . . . . . . . 148 Robot Hit Streak 26 | 7 3 7 11 4 . 3 7 5 . 3 . 2 3 15 . 21 26 . 1 . . 15 Robot Miss Streak 8 | 1 4 1 3 2 . 3 7 5 . . . 2 1 1 . 2 1 . 2 . . 8 Penetration Max 1 | . . . . . . . . . . . . . . . . . . . . . . 1 Secondary Targets 4 | . 1 . 2 . . . 1 . . . . . . . . . . . . . . . Max Gunslinging Chain 1 | . 1 . 1 . . . 1 . . . . . . . . . . . . . . . Autonomous 42 | . . . . . . . . . . . . . . . . 38 4 . . . . . Shots Hit Robots 423 | 13 4 17 74 8 . 4 81 19 8 4 1 3 3 46 . 35 5 . 2 . . 96 Core Hits 361 | 7 4 8 23 6 . 4 93 17 4 5 1 11 4 7 . 18 2 . 11 . . 136 Critical Kills 1 | . . . . . . . 1 . . . . . . . . . . . . . . . Critical Parts Destroyed 3 | . . 2 1 . . . . . . . . . . . . . . . . . . . Critical Strikes 17 | . . 2 1 . . . 1 1 . . . . . 1 . . . . . . . 11 Meltdown 1 | . . . . . . . 1 . . . . . . . . . . . . . . . Destroy 3 | . . 2 1 . . . . . . . . . . . . . . . . . . . Sever 11 | . . . . . . . . . . . . . . . . . . . . . . 11 Impale 2 | . . . . . . . . 1 . . . . . 1 . . . . . . . . Melee Attacks 78 | . . . . . . . . 10 10 3 1 9 16 28 . 1 . . . . . . Impact . | . . . . . . . . . . . . . . . . . . . . . . . Slashing 24 | . . . . . . . . 3 10 3 1 4 . 2 . 1 . . . . . . Piercing 54 | . . . . . . . . 7 . . . 5 16 26 . . . . . . . . Sneak Attacks 26 | . . . . . . . . 3 8 2 1 . 1 10 . 1 . . . . . . Combat Hostiles 4 | . . . . . . . . . 1 . . . . 2 . 1 . . . . . . Follow-up Attacks 1 | . . . . . . . . . 1 . . . . . . . . . . . . . Damage Inflicted 25495 | 105 73 254 1128 161 . 123 1460 536 625 523 110 466 439 1192 . 1195 147 . 865 . . 16093 Guns 5804 | 105 73 254 1065 16 . . 1130 174 . . . . . . . 1078 147 . 46 . . 1716 Cannons 14422 | . . . 63 145 . 123 330 . . . . . . . . . . . . . . 13761 Explosions 2404 | . . . . . . . . . . 268 . 403 358 . . . . . 819 . . 556 Melee 2805 | . . . . . . . . 362 625 255 110 63 81 1192 . 117 . . . . . . Ramming 60 | . . . . . . . . . . . . . . . . . . . . . . 60 Kinetic 2817 | 105 73 254 1065 16 . . 1130 174 . . . . . . . . . . . . . . Thermal 1960 | . . . 63 145 . 123 330 . . . . . 28 . . 1078 147 . 46 . . . Explosive 2376 | . . . . . . . . . . 268 . 403 330 . . . . . 819 . . 556 Electromagnetic . | . . . . . . . . . . . . . . . . . . . . . . . Impact . | . . . . . . . . . . . . . . . . . . . . . . . Slashing 16974 | . . . . . . . . 274 625 255 110 63 . 53 . 117 . . . . . 15477 Piercing 1308 | . . . . . . . . 88 . . . . 81 1139 . . . . . . . . Highest Corruption 17 | . . . 3 3 3 3 . . . . . . 1 1 . 17 . . . . 6 9 Average Corruption 4 | . . . 3 3 3 3 . . . . . . 1 1 . 10 . . . . 5 6 Corruption Purged 1 | . . . . . . . . . . . . . . 1 . . . . . . . . Corruption Blocked . | . . . . . . . . . . . . . . . . . . . . . . . Effects 73 | . . . 8 9 11 5 . . . . . . . 1 . 12 . . . . 4 23 Message Errors 17 | . . . 1 2 2 2 . . . . . . . 1 . 3 . . . . 1 5 Matter Fused 18 | . . . 3 2 2 3 . . . . . . . . . 3 . . . . . 5 Heat Flow Errors 6 | . . . . 2 . . . . . . . . . . . 1 . . . . 3 . Energy Discharges 10 | . . . . 2 2 . . . . . . . . . . 3 . . . . . 3 Parts Rejected 3 | . . . 1 . . . . . . . . . . . . . . . . . . 2 Parts Fused 3 | . . . . . 1 . . . . . . . . . . . . . . . . 2 Data Loss (minor) 8 | . . . 2 1 3 . . . . . . . . . . 2 . . . . . . Data Loss (major) 4 | . . . 1 . . . . . . . . . . . . . . . . . . 3 Misfires 1 | . . . . . . . . . . . . . . . . . . . . . . 1 Alerts 3 | . . . . . 1 . . . . . . . . . . . . . . . . 2 Overload Shots 9 | . . . . . . . . . . . . . . . . . 3 . 6 . . . Overflow Damage 1001 | . . . . 1 . 1 9 52 198 51 . 16 57 448 . . . . 15 . . 153 Projectiles 156 | . . . . 1 . 1 9 . . . . . . . . . . . . . . 145 Explosions 147 | . . . . . . . . . . 51 . 16 57 . . . . . 15 . . 8 Melee 698 | . . . . . . . . 52 198 . . . . 448 . . . . . . . . Knockbacks . | . . . . . . . . . . . . . . . . . . . . . . . Impact . | . . . . . . . . . . . . . . . . . . . . . . . Kinetic . | . . . . . . . . . . . . . . . . . . . . . . . Secondary . | . . . . . . . . . . . . . . . . . . . . . . . Self-Inflicted Damage 94 | . . . . . . . . . . 53 . . . . . . . . . . . 41 Shots 4 | . . . . . . . . . . 3 . . . . . . . . . . . 1 Rammed . | . . . . . . . . . . . . . . . . . . . . . . . Targets Rammed 3 | . . . . . . . . . . . . . . . . . . . . . . 3 Kicked 3 | . . . . . . . . . . . . . . . . . . . . . . 3 Crushed . | . . . . . . . . . . . . . . . . . . . . . . . Highest Temperature 402 | . . 67 72 270 . 392 402 13 1 . 32 1 302 310 . 195 195 . 195 66 117 40 Average Temperature 88 | . . 13 22 120 . 235 133 3 1 . 18 1 107 81 . 88 70 . 107 18 58 12 Received Heat Transfer 1787 | . . 90 294 . . 135 415 84 . . . . . 133 . . 75 . 9 . 109 443 Effects 10 | . . . . 1 . 7 . . . . . . 1 1 . . . . . . . . Shutdowns 1 | . . . . . . 1 . . . . . . . . . . . . . . . . Energy Bleed 6 | . . . . 1 . 3 . . . . . . 1 1 . . . . . . . . Interference 2 | . . . . . . 2 . . . . . . . . . . . . . . . . Damage (minor) 1 | . . . . . . 1 . . . . . . . . . . . . . . . . Siege Activations . | . . . . . . . . . . . . . . . . . . . . . . . Martial Activations . | . . . . . . . . . . . . . . . . . . . . . . . Shielding Activations . | . . . . . . . . . . . . . . . . . . . . . . . Robots Disrupted . | . . . . . . . . . . . . . . . . . . . . . . . Combat Hostiles . | . . . . . . . . . . . . . . . . . . . . . . . Robots Corrupted . | . . . . . . . . . . . . . . . . . . . . . . . Combat Hostiles . | . . . . . . . . . . . . . . . . . . . . . . . Parts Fried . | . . . . . . . . . . . . . . . . . . . . . . . Impact Corruptions . | . . . . . . . . . . . . . . . . . . . . . . . Robots Melted 3 | . . . . . . . 1 . . . . . . . . 2 . . . . . . Combat Hostiles . | . . . . . . . . . . . . . . . . . . . . . . . Parts Melted 10 | . . . . . . . 1 . . . . . . . . 9 . . . . . . Heat Transferred 2727 | . . . 111 259 . 222 592 . . . . . 50 . . 1258 185 . 50 . . . Parts Sabotaged . | . . . . . . . . . . . . . . . . . . . . . . . Parts Stolen . | . . . . . . . . . . . . . . . . . . . . . . . Parts Stripped . | . . . . . . . . . . . . . . . . . . . . . . . Power Chain Reactions . | . . . . . . . . . . . . . . . . . . . . . . . Alert | -11 -10 -10 -9 -9 -9 -8 -8 -7 -7 -7 -7 -6 -6 -6 -5 -5 -4 -4 -4 -3 -3 -3 ------- Run | Yrd Mat Min Mat Min Exi Min Mat Fac Low Low Dat Pro Fac Ext Fac DSF Fac Was Fac Res Qua Sec Maximum Alert Level 5 | . . . . . . . 1 . . . . . 1 3 1 2 1 . 1 . . 5 Low Security (%) 77 | 100 100 100 100 100 . 100 95 100 . . . . 91 13 . . 57 100 88 100 100 7 Level 1 12 | . . . . . . . 4 . . . . . 8 52 100 61 42 . 11 . . 19 Level 2 3 | . . . . . . . . . . . . . . 24 . 38 . . . . . . Level 3 . | . . . . . . . . . . . . . . 9 . . . . . . . . Level 4 . | . . . . . . . . . . . . . . . . . . . . . . . Level 5 . | . . . . . . . . . . . . . . . . . . . . . . . High Security . | . . . . . . . . . . . . . . . . . . . . . . . Max Security 5 | . . . . . . . . . . . . . . . . . . . . . . 72 Sterilizations 1 | . . . . . . . . . . . . . . . . 1 . . . . . . Peak Influence 3015 | 5 95 50 141 101 . 65 213 60 . . . . 270 805 335 509 281 86 234 129 110 3015 Initial 335 | . . 3 . 41 . . 13 60 . . . . 203 132 335 234 266 56 60 122 49 61 Average 219 | . 44 3 38 28 . 17 68 9 . . . . 146 405 335 396 198 67 54 110 62 1640 Influence Increases 6338 | 15 150 73 365 145 . 75 472 101 105 100 20 145 417 1139 . 365 176 30 271 17 281 1876 Destroy 0b10 Robot/C 2960 | . 60 60 240 120 . 60 260 40 20 80 20 120 60 560 . 280 . . 120 . . 860 Destroy 0b10 Robot/NC 210 | 15 5 . 20 . . 5 40 25 . . . 5 5 40 . 5 5 . 15 . . 25 Destroy Leader 488 | . 10 10 76 10 . 10 68 20 10 20 . 20 10 62 . 50 2 . 20 . . 90 Allied During Kill 384 | . . 3 . . . . . . . . . . . 381 . . . . . . . . Successful Hack 159 | . 15 . 5 . . . 28 . . . . . 4 28 . . 28 . 21 . 24 6 Disable Machine 435 | . 15 . . 15 . . 15 15 . . . . 90 15 . . 15 . 45 . . 210 Destroy Structure 247 | . . . 9 . . . 1 1 . . . . 53 23 . . 6 . 50 2 2 100 Advance Influence 150 | . . . . . . . . . . . . . 150 . . . . . . . . . Partial Spotted 180 | . . . . . . . 15 . . . . . 45 . . . 45 30 . 15 15 15 Lose Combat Pursuer 1125 | . 45 . 15 . . . 45 . 75 . . . . 30 . 30 75 . . . 240 570 Influence Decreases 4511 | 15 140 83 258 223 29 40 373 235 105 100 20 60 232 724 350 191 525 104 124 161 260 159 Entered New Map 1392 | . . 7 . 66 29 . 22 74 . . . . 32 138 350 101 243 104 26 111 40 49 Time Decay 2479 | 15 140 76 218 157 . 30 321 161 105 90 . 60 180 356 . . 262 . 78 30 110 90 Lost Part 440 | . . . 40 . . 10 30 . . 10 20 . 20 30 . 90 20 . 20 20 110 20 Lost Ally 200 | . . . . . . . . . . . . . . 200 . . . . . . . . Squads Dispatched 60 | . . . . . . . 5 2 . . . . 3 3 . 5 5 . 1 1 3 32 Investigation 6 | . . . . . . . . . . . . . 1 . . . 3 . . 1 1 . Extermination 4 | . . . . . . . . 1 . . . . 1 . . . 1 . . . 1 . Reinforcement 15 | . . . . . . . 2 1 . . . . 1 3 . 5 1 . 1 . 1 . Assault 30 | . . . . . . . . . . . . . . . . . . . . . . 30 Garrison 3 | . . . . . . . 3 . . . . . . . . . . . . . . . Intercept 2 | . . . . . . . . . . . . . . . . . . . . . . 2 Searches Triggered . | . . . . . . . . . . . . . . . . . . . . . . . Construction Impeded 3 | . . . . . . . . . . . . . 1 2 . . . . . . . . Haulers Reinforced . | . . . . . . . . . . . . . . . . . . . . . . . Active Scanning Responses . | . . . . . . . . . . . . . . . . . . . . . . . Cargo Convoy Interrupts . | . . . . . . . . . . . . . . . . . . . . . . . Stealth | -11 -10 -10 -9 -9 -9 -8 -8 -7 -7 -7 -7 -6 -6 -6 -5 -5 -4 -4 -4 -3 -3 -3 --------- Run | Yrd Mat Min Mat Min Exi Min Mat Fac Low Low Dat Pro Fac Ext Fac DSF Fac Was Fac Res Qua Sec Distress Signals 16 | . . . 3 . . . 3 . . . . . . 3 . . . . 2 1 . 4 Communications Jammed . | . . . . . . . . . . . . . . . . . . . . . . . Distress Signals . | . . . . . . . . . . . . . . . . . . . . . . . Times Spotted 339 | . 7 6 20 7 . 7 29 3 2 4 4 7 3 35 . 19 8 1 12 4 19 142 Peak Tracking Total 25 | . 3 2 5 4 . 4 4 1 5 3 4 3 3 6 . 7 5 1 7 4 12 25 Tactical Retreats 32 | . 2 . 1 . . . 3 . 3 . . . . 2 . 2 3 . . . 4 12 Traps | -11 -10 -10 -9 -9 -9 -8 -8 -7 -7 -7 -7 -6 -6 -6 -5 -5 -4 -4 -4 -3 -3 -3 ------- Run | Yrd Mat Min Mat Min Exi Min Mat Fac Low Low Dat Pro Fac Ext Fac DSF Fac Was Fac Res Qua Sec Traps Triggered 14 | . . . . . . . . 1 . . . . 2 6 . 1 3 . . . . 1 Indirectly . | . . . . . . . . . . . . . . . . . . . . . . . Trap Hack Attempts . | . . . . . . . . . . . . . . . . . . . . . . . Triggered . | . . . . . . . . . . . . . . . . . . . . . . . Disarmed . | . . . . . . . . . . . . . . . . . . . . . . . Reprogrammed . | . . . . . . . . . . . . . . . . . . . . . . . Reused . | . . . . . . . . . . . . . . . . . . . . . . . Traps Extracted . | . . . . . . . . . . . . . . . . . . . . . . . Installed . | . . . . . . . . . . . . . . . . . . . . . . . Triggered . | . . . . . . . . . . . . . . . . . . . . . . . Machines | -11 -10 -10 -9 -9 -9 -8 -8 -7 -7 -7 -7 -6 -6 -6 -5 -5 -4 -4 -4 -3 -3 -3 ---------- Run | Yrd Mat Min Mat Min Exi Min Mat Fac Low Low Dat Pro Fac Ext Fac DSF Fac Was Fac Res Qua Sec Machines Disabled 40 | . 1 . . 1 . . 1 1 . . . . 6 3 . . 1 . 3 . . 23 Max in Single Turn 4 | . 1 . . 1 . . 1 1 . . . . 4 1 . . 1 . 2 . . 2 Garrison Access 1 | . . . . . . . . . . . . . . . . . . . 1 . . . Energy Cycler 2 | . . . . . . . . . . . . . . 2 . . . . . . . . Machines Repaired . | . . . . . . . . . . . . . . . . . . . . . . . Machines Dismantled . | . . . . . . . . . . . . . . . . . . . . . . . Machines Sabotaged . | . . . . . . . . . . . . . . . . . . . . . . . Overloaded Fab Kills . | . . . . . . . . . . . . . . . . . . . . . . . Hacking | -11 -10 -10 -9 -9 -9 -8 -8 -7 -7 -7 -7 -6 -6 -6 -5 -5 -4 -4 -4 -3 -3 -3 --------- Run | Yrd Mat Min Mat Min Exi Min Mat Fac Low Low Dat Pro Fac Ext Fac DSF Fac Was Fac Res Qua Sec Machines Accessed 61 | . 3 2 3 . 2 . 5 2 . . 3 . 4 12 1 . 9 . 4 5 2 4 Terminals 44 | . 3 2 2 . . . 5 . . . . . 4 11 1 . 5 . 2 3 2 4 Fabricators 1 | . . . . . . . . . . . . . . . . . 1 . . . . . Repair Stations 2 | . . . . . . . . . . . . . . . . . 1 . . 1 . . Recycling Units 7 | . . . 1 . . . . 2 . . . . . 1 . . 1 . 1 1 . . Scanalyzers . | . . . . . . . . . . . . . . . . . . . . . . . Garrison Access 2 | . . . . . . . . . . . . . . . . . 1 . 1 . . . Total Hacks 147 | . 6 3 9 . 3 . 13 4 . . 23 . 7 31 1 . 19 . 9 9 4 6 Successful 72 | . 4 1 5 . 3 . 7 1 . . 23 . 1 17 1 . 2 . 4 . 1 2 Failed 75 | . 2 2 4 . . . 6 3 . . . . 6 14 . . 17 . 5 9 3 4 Catastrophic 17 | . . . 1 . . . 2 1 . . . . . 1 . . 4 . 3 3 1 1 Database Lockouts . | . . . . . . . . . . . . . . . . . . . . . . . Manual 53 | . 4 . 7 . 1 . 14 . . . . . 1 15 . . 1 . 6 4 . . Terminals 96 | . 6 3 7 . . . 13 . . . . . 7 28 1 . 9 . 6 6 4 6 Fabricators 1 | . . . . . . . . . . . . . . . . . 1 . . . . . Repair Stations 5 | . . . . . . . . . . . . . . . . . 4 . . 1 . . Recycling Units 14 | . . . 2 . . . . 4 . . . . . 3 . . 2 . 1 2 . . Scanalyzers . | . . . . . . . . . . . . . . . . . . . . . . . Garrison Access 5 | . . . . . . . . . . . . . . . . . 3 . 2 . . . Terminal Hacks 46 | . 1 1 . . 3 . . . . . 23 . 1 10 1 . 1 . 2 . 1 2 Record 8 | . . . . . 2 . . . . . 6 . . . . . . . . . . . Part Schematic 10 | . . . . . . . . . . . 9 . . 1 . . . . . . . . Robot Schematic 5 | . . . . . . . . . . . 5 . . . . . . . . . . . Prototype ID Bank 4 | . . . . . . . . . . . 3 . . . . . . . 1 . . . Open Door 7 | . . . . . . . . . . . . . 1 5 . . . . . . . 1 Open DSF 1 | . . . . . . . . . . . . . . . 1 . . . . . . . Branch Access Points 3 | . 1 . . . . . . . . . . . . 1 . . . . 1 . . . Registered Components 1 | . . . . . . . . . . . . . . 1 . . . . . . . . Zone Layout 5 | . . 1 . . . . . . . . . . . 2 . . 1 . . . 1 . Proto ID Catalog 1 | . . . . . 1 . . . . . . . . . . . . . . . . . Activate Exoskeleton 1 | . . . . . . . . . . . . . . . . . . . . . . 1 Fabricator Hacks 1 | . . . . . . . . . . . . . . . . . 1 . . . . . Build 1 | . . . . . . . . . . . . . . . . . 1 . . . . . Repair Station Hacks . | . . . . . . . . . . . . . . . . . . . . . . . Recycling Unit Hacks 4 | . . . 2 . . . . 1 . . . . . 1 . . . . . . . . Retrieve Components 4 | . . . 2 . . . . 1 . . . . . 1 . . . . . . . . Scanalyzer . | . . . . . . . . . . . . . . . . . . . . . . . Garrison Access Hacks 1 | . . . . . . . . . . . . . . . . . . . 1 . . . Seal Access 1 | . . . . . . . . . . . . . . . . . . . 1 . . . Unauthorized Hacks 20 | . 3 . 3 . . . 7 . . . . . . 6 . . . . 1 . . . Terminals 20 | . 3 . 3 . . . 7 . . . . . . 6 . . . . 1 . . . Botnet 9 | . 1 . 2 . . . 2 . . . . . . 3 . . . . 1 . . . Skim 11 | . 2 . 1 . . . 5 . . . . . . 3 . . . . . . . . Fabricators . | . . . . . . . . . . . . . . . . . . . . . . . Repair Stations . | . . . . . . . . . . . . . . . . . . . . . . . Recycling Units . | . . . . . . . . . . . . . . . . . . . . . . . Scanalyzers . | . . . . . . . . . . . . . . . . . . . . . . . Garrison Access . | . . . . . . . . . . . . . . . . . . . . . . . Data Cores Recovered . | . . . . . . . . . . . . . . . . . . . . . . . Used . | . . . . . . . . . . . . . . . . . . . . . . . Hacking Detections 44 | . 3 1 3 . . . 4 2 . . . . 3 7 . . 8 . 3 5 2 3 Full Trace Events 5 | . . . . . . . . . . . . . 1 . . . 2 . . 1 1 . Feedback Events . | . . . . . . . . . . . . . . . . . . . . . . . Feedback Blocked . | . . . . . . . . . . . . . . . . . . . . . . . Robot Schematics Acquired 5 | . . . . . . . . . . . 5 . . . . . . . . . . . Robots Built . | . . . . . . . . . . . . . . . . . . . . . . . Authchips . | . . . . . . . . . . . . . . . . . . . . . . . Time . | . . . . . . . . . . . . . . . . . . . . . . . Total Robot Build Rating . | . . . . . . . . . . . . . . . . . . . . . . . Part Schematics Acquired 10 | . . . . . . . . . . . 9 . . 1 . . . . . . . . Parts Built 1 | . . . . . . . . . . . . . . . . . 1 . . . . . Authchips . | . . . . . . . . . . . . . . . . . . . . . . . Time 64 | . . . . . . . . . . . . . . . . . 64 . . . . . Total Part Build Rating 8 | . . . . . . . . . . . . . . . . . 8 . . . . . Parts Repaired . | . . . . . . . . . . . . . . . . . . . . . . . Time . | . . . . . . . . . . . . . . . . . . . . . . . Parts Recycled . | . . . . . . . . . . . . . . . . . . . . . . . Recycled Matter . | . . . . . . . . . . . . . . . . . . . . . . . Retrieved Matter . | . . . . . . . . . . . . . . . . . . . . . . . Retrieved Components 14 | . . . 2 . . . . 3 . . . . . 9 . . . . . . . . Parts Scanalyzed . | . . . . . . . . . . . . . . . . . . . . . . . Part Schematics Acquired . | . . . . . . . . . . . . . . . . . . . . . . . Parts Damaged . | . . . . . . . . . . . . . . . . . . . . . . . Bothacking | -11 -10 -10 -9 -9 -9 -8 -8 -7 -7 -7 -7 -6 -6 -6 -5 -5 -4 -4 -4 -3 -3 -3 ------------ Run | Yrd Mat Min Mat Min Exi Min Mat Fac Low Low Dat Pro Fac Ext Fac DSF Fac Was Fac Res Qua Sec Used RIF Installer . | . . . . . . . . . . . . . . . . . . . . . . . Robots Hacked . | . . . . . . . . . . . . . . . . . . . . . . . Non-combat . | . . . . . . . . . . . . . . . . . . . . . . . Combat . | . . . . . . . . . . . . . . . . . . . . . . . Robot Hacks Applied . | . . . . . . . . . . . . . . . . . . . . . . . Relay Couplers Released . | . . . . . . . . . . . . . . . . . . . . . . . Fabnet Peak Effective % . | . . . . . . . . . . . . . . . . . . . . . . . Robots Rewired 14 | . . . . . . . . . . . . . . 14 . . . . . . . . Allies Hacked . | . . . . . . . . . . . . . . . . . . . . . . . Hacks Repelled . | . . . . . . . . . . . . . . . . . . . . . . . Allies | -11 -10 -10 -9 -9 -9 -8 -8 -7 -7 -7 -7 -6 -6 -6 -5 -5 -4 -4 -4 -3 -3 -3 -------- Run | Yrd Mat Min Mat Min Exi Min Mat Fac Low Low Dat Pro Fac Ext Fac DSF Fac Was Fac Res Qua Sec Total Allies 22 | . . 4 . . . . . . . . . . . 18 . . . . . . . . Largest Group 13 | . . 3 . . . . . . . . . . . 13 . . . . . . . . Highest-Rated Group 542 | . . 40 . . . . . . . . . . . 542 . . . . . . . . Highest-Rated Ally 159 | . . 31 . . . . . . . . . . . 159 . . . . . . . . Initial Warlord ECA Mod 51 | . . . . . . . . . . . . . . . . . 9 9 9 8 8 8 Total Orders . | . . . . . . . . . . . . . . . . . . . . . . . Ally Attacks 174 | . . 1 . . . . . . . . . . . 173 . . . . . . . . Total Damage 4105 | . . . . . . . . . . . . . . 4105 . . . . . . . . Kills 28 | . . . . . . . . . . . . . . 28 . . . . . . . . Allies Corrupted . | . . . . . . . . . . . . . . . . . . . . . . . Allies Melted 1 | . . . . . . . . . . . . . . 1 . . . . . . . . Intel | -11 -10 -10 -9 -9 -9 -8 -8 -7 -7 -7 -7 -6 -6 -6 -5 -5 -4 -4 -4 -3 -3 -3 ------- Run | Yrd Mat Min Mat Min Exi Min Mat Fac Low Low Dat Pro Fac Ext Fac DSF Fac Was Fac Res Qua Sec Active Infowar (turns) 4314 | 17 342 949 . . . . . 468 190 212 31 . 349 630 3 44 212 12 192 76 110 477 Optics 417 | . . . . . . . . . . . . . . . . . . . . . . 417 Sensors 2399 | . . . . . . . . 468 190 212 31 . 349 630 3 44 211 12 192 57 . . Seismic 1463 | 17 342 949 . . . . . . . . . . . . . . . . . 45 110 . ECM 297 | . . . . . . . . . . . . . . . . . 2 . . . . 295 Robot Analysis Total 151 | . . . . . . . . . . . 151 . . . . . . . . . . . Derelict Logs Recovered 7 | . . 2 . 2 . . . . 1 1 . 1 . . . . . . . . . . Drone Launches . | . . . . . . . . . . . . . . . . . . . . . . . Drone Recoveries . | . . . . . . . . . . . . . . . . . . . . . . . Exploration | -11 -10 -10 -9 -9 -9 -8 -8 -7 -7 -7 -7 -6 -6 -6 -5 -5 -4 -4 -4 -3 -3 -3 ------------- Run | Yrd Mat Min Mat Min Exi Min Mat Fac Low Low Dat Pro Fac Ext Fac DSF Fac Was Fac Res Qua Sec Turns Passed 10475 | 139 342 1257 896 679 453 175 1518 737 329 477 38 129 367 807 3 349 564 12 192 76 246 690 Spaces Moved 9141 | 76 193 584 381 428 366 125 613 598 503 467 113 353 531 1041 3 206 641 70 211 257 455 926 Core 19 | 19 . . . . . . . . . . . . . . . . . . . . . . Treads 1135 | 57 193 584 301 . . . . . . . . . . . . . . . . . . . Legs 556 | . . . . . . . 2 . . . . . . . . . . . . . . 554 Wheels 1981 | . . . 80 428 366 125 611 371 . . . . . . . . . . . . . . Hover . | . . . . . . . . . . . . . . . . . . . . . . . Flight 5450 | . . . . . . . . 227 503 467 113 353 531 1041 3 206 641 70 211 257 455 372 Fastest Speed 5 | 50 160 160 98 110 110 125 115 23 23 23 17 23 17 17 17 6 5 15 6 18 21 30 Average Speed 67 | 132 160 206 180 125 121 125 134 91 23 25 26 23 26 17 17 18 14 15 15 22 32 33 Slowest Speed 400 | 160 160 240 240 135 125 125 400 145 23 106 87 23 96 20 17 165 52 15 58 67 40 120 Overloaded Moves 64 | . . . . . . . . . . . 22 . . . . 1 24 . 17 . . . Propulsion Burnouts . | . . . . . . . . . . . . . . . . . . . . . . . Robots Hopped 24 | . . . . . . . . . . . . . . 1 . . 5 . 4 2 9 3 Potential Cave-ins 2 | . . . . . . . . . . . . . 2 . . . . . . . . . Cave-ins Triggered 1 | . . . . . . . . . . . . . . . . 1 . . . . . . Teleports 1 | . . . . . . . . . . . . . . . . . . . . . . 1 Exploration Rate (%) 49 | 4 39 96 34 70 84 35 49 11 65 60 78 48 11 89 . 86 15 64 7 9 67 69 Regions Visited 22 Branch Regions 11 Pre-discovered Areas 29 | . . 1 . . 1 . 2 . . . 25 . . . . . . . . . . . Known Exits Taken 13 | . 1 . . . . . 1 1 1 1 1 1 1 1 1 . . . 1 1 1 . Unknown Exits Taken 6 | 1 . 1 1 1 1 1 . . . . . . . . . . . . . . . . Scrap Searched 13 | . . 2 . 2 . 1 . . 1 3 . 4 . . . . . . . . . . Spaces Dug 28 | . . . . . . . . 1 . 2 . 4 9 1 . . 2 . 7 1 1 . Terrain Destroyed 229 | . . . 9 . . . . 1 . 19 . 47 67 1 . . 3 . 24 1 1 56 Melee 15 | . . . . . . . . 1 . . . 4 9 1 . . . . . . . . Projectile 28 | . . . . . . . . . . . . . . . . . 3 . 8 1 1 15 AOE 186 | . . . 9 . . . . . . 19 . 43 58 . . . . . 16 . . 41 Terrain Rammed . | . . . . . . . . . . . . . . . . . . . . . . . Walls Destroyed . | . . . . . . . . . . . . . . . . . . . . . . . Machines Disabled . | . . . . . . . . . . . . . . . . . . . . . . . Actions | -11 -10 -10 -9 -9 -9 -8 -8 -7 -7 -7 -7 -6 -6 -6 -5 -5 -4 -4 -4 -3 -3 -3 --------- Run | Yrd Mat Min Mat Min Exi Min Mat Fac Low Low Dat Pro Fac Ext Fac DSF Fac Was Fac Res Qua Sec Total 12846 | 101 215 611 481 559 375 132 1214 763 702 812 118 385 739 1618 4 517 1100 71 352 273 543 1161 Wait 2714 | . . 14 3 106 . 1 477 117 193 334 . . 153 415 . 243 428 . 117 9 87 17 Move 9072 | 75 192 583 380 427 365 124 612 597 502 466 112 352 530 1038 2 205 631 69 202 252 436 920 Hop 24 | . . . . . . . . . . . . . . 1 . . 5 . 4 2 9 3 Pick Up 147 | 11 7 2 17 7 5 1 20 3 . . 1 4 10 10 . 13 9 1 1 1 2 22 Fast Attach 51 | 1 . . 4 2 . . 12 4 . . . 3 . 3 . 7 2 . 1 2 2 8 Attach 94 | 6 . . 11 1 1 . 3 6 . 1 2 3 11 3 2 7 5 . 3 2 3 24 Detach 34 | . . . 1 . . . . 2 . 1 . 4 4 . . 4 3 . 4 2 2 7 Swap 53 | . 3 . 5 . 1 . 7 7 . 3 2 1 5 5 . 6 1 . 5 . . 2 Drop 115 | . 6 . 4 8 3 . 30 10 . . . 4 6 9 . 13 7 1 2 2 1 9 Fire 344 | 8 7 12 56 8 . 6 53 7 . 4 . 5 4 30 . . 9 . 13 1 1 120 Melee 75 | . . . . . . . . 10 7 3 1 9 16 28 . 1 . . . . . . Ram . | . . . . . . . . . . . . . . . . . . . . . . . Kick 3 | . . . . . . . . . . . . . . . . . . . . . . 3 Crush . | . . . . . . . . . . . . . . . . . . . . . . . Escape Stasis 120 | . . . . . . . . . . . . . . 76 . 18 . . . . . 26 Rewire . | . . . . . . . . . . . . . . . . . . . . . . . Trap . | . . . . . . . . . . . . . . . . . . . . . . . Miscellaneous . | . . . . . . . . . . . . . . . . . . . . . . . Route ------- -11/Scrapyard -10/Materials (discovered 4 exits: *Mat x2 / *Min x2) -10/Mines (discovered 2 exits: *Mat x2) -9/Materials (discovered 2 exits: *Mat / [*Min]) -9/Mines (discovered 2 exits: *Mat / *Exi) -9/Exiles -8/Mines -8/Materials (discovered 3 exits: *Fac x3) -7/Factory (discovered 2 exits: *Low x2) -7/Lower Caves -7/Lower Caves -7/Data Miner -6/Proximity Caves -6/Factory (discovered 3 exits: *Fac / *Ext x2) -6/Extension (discovered 3 exits: *Fac x2 / *Cet) -5/Factory -5/DSF -4/Factory -4/Waste -4/Factory (discovered 3 exits: *Res / Upp x2) -3/Research -3/Quarantine (discovered 2 exits: *Sec / *Frg) -3/Section 7 (discovered 1 exit: *Res) History --------- Turn | Location | Event 10 | -11/Scrapyard | Discovered new exit (range 16) 140 | -11/Scrapyard | Entered Materials 268 | -10/Materials | Identified exit to Mines 302 | -10/Materials | Build established: Mutant 330 | -10/Materials | Discovered new exit (range 7) 448 | -10/Materials | Discovered new exit (range 15) 482 | -10/Materials | Entered Mines 665 | -10/Mines | Received a Rocket Launcher from a helpful Derelict 707 | -10/Mines | Assisted by bots powering up and referring to "LRC-V3" 733 | -10/Mines | Discovered new exit (range 8) 805 | -10/Mines | Joined a pair of Derelicts in attacking an 0b10 outpost 911 | -10/Mines | Lost 3 allies 951 | -10/Mines | Learned Materials terminal intel 968 | -10/Mines | Received a Mining Laser from a helpful Derelict 1164 | -10/Mines | Discovered new exit (range 9) 1420 | -10/Mines | Core integrity fell below 50% 1509 | -10/Mines | Learned location of Zion (-6) 1739 | -10/Mines | Entered Materials 1739 | -9/Materials | Evolved 2 slots: Propulsion x1, Utility x1 1740 | -9/Materials | Loaded intel: 12 terminal locations 2280 | -9/Materials | Lost 3 parts (1p1n1u) 2296 | -9/Materials | Discovered new exit (range 9) 2452 | -9/Materials | Core integrity fell below 50% 2472 | -9/Materials | Lost 3 parts (1n2w) 2518 | -9/Materials | Discovered new exit (range 15) 2635 | -9/Materials | Entered Mines 2691 | -9/Mines | Discovered new exit (range 11) 2730 | -9/Mines | Found a hidden stash of uninstalled traps 2941 | -9/Mines | Found a damaged Exp. Sensor Array with a note attached 2944 | -9/Mines | Found Prototype Device 2952 | -9/Mines | Learned Materials stockpile data 2965 | -9/Mines | Build established: Scavenger-Mutant 2990 | -9/Mines | A weapon hastily lodged in a ceiling crevice suddenly fell to the ground 3011 | -9/Mines | Deemed a non-threat by the Exiles lab entrance 3106 | -9/Mines | Learned Materials security intel 3242 | -9/Mines | Assembled infested the area 3247 | -9/Mines | Assisted by a Guerilla fighting off Assembled 3310 | -9/Mines | Discovered new exit (range 5) 3314 | -9/Mines | Entered Exiles 3340 | -9/Exiles | Met 8R-AWN 3364 | -9/Exiles | Met EX-HEX 3398 | -9/Exiles | Build established: Mutant 3457 | -9/Exiles | Visited The Gauntlet 3529 | -9/Exiles | Met EX-DEC 3582 | -9/Exiles | Met EX-BIN 3600 | -9/Exiles | Aligned with FarCom system 3601 | -9/Exiles | Given EX-Vault access code 3630 | -9/Exiles | Opened EX-Vault 3636 | -9/Exiles | Found Superbattery 3638 | -9/Exiles | Found Cloak of Protection 3643 | -9/Exiles | Found AWS/Thermal 3670 | -9/Exiles | Warned to stay clear of 0b10 Research branches 3752 | -9/Exiles | Discovered new exit (range 14) 3767 | -9/Exiles | Stole three prototypes: Superbattery, Cloak of Protection, AWS/Thermal 3767 | -9/Exiles | Entered Mines 3931 | -8/Mines | Discovered new exit (range 12) 3942 | -8/Mines | Entered Materials 3942 | -8/Materials | Evolved 2 slots: Propulsion x1, Utility x1 4977 | -8/Materials | Garrison activated, responded to threat 5027 | -8/Materials | Discovered new exit (range 15) 5096 | -8/Materials | Learned location of 1 exit from Recycling 5154 | -8/Materials | Learned Storage emergency access door positions 5272 | -8/Materials | Identified exit to Factory 5294 | -8/Materials | Learned location of Extension (-6) 5304 | -8/Materials | Learned Factory fabricator intel 5354 | -8/Materials | Learned 4 Recycling zone layouts 5460 | -8/Materials | Entered Factory 5460 | -7/Factory | Evolved 2 slots: Propulsion x1, Utility x1 5461 | -7/Factory | Identified exit to Lower Caves 5462 | -7/Factory | Loaded intel: 6 fabricator locations 5462 | -7/Factory | FarCom data flow suspended 6197 | -7/Factory | Entered Lower Caves 6313 | -7/Lower Caves | Learned Factory non-interactive machine intel 6347 | -7/Lower Caves | Encountered a Warlord checkpoint 6372 | -7/Lower Caves | Discovered new exit (range 3) 6372 | -7/Lower Caves | Identified exit to Lower Caves 6526 | -7/Lower Caves | Entered another Lower Caves area 6541 | -7/Lower Caves | Learned 8 Factory zone layouts 6990 | -7/Lower Caves | Discovered new exit (range 9) 6993 | -7/Lower Caves | Identified exit to Data Miner 7003 | -7/Lower Caves | Entered Data Miner 7003 | -7/Data Miner | Discovered new exit (range 6) 7008 | -7/Data Miner | Met Data Miner 7012 | -7/Data Miner | Learned location of Section 7 (-3) 7012 | -7/Data Miner | Acquired the access code to Warlord's prototype stash 7017 | -7/Data Miner | Received God Mode back door access code from Data Miner 7023 | -7/Data Miner | Destroyed Data Miner 7025 | -7/Data Miner | Interfaced with the Data Conduit 7025 | -7/Data Miner | Identified Exp. Sensor Array 7040 | -7/Data Miner | Identified exit to Proximity Caves 7041 | -7/Data Miner | Entered Proximity Caves 7073 | -6/Proximity Caves | Lost 3 parts (2n1u) 7119 | -6/Proximity Caves | Spotter reported a threat 7127 | -6/Proximity Caves | Identified exit to Factory 7170 | -6/Proximity Caves | Entered Factory 7170 | -6/Factory | Evolved 2 slots: Propulsion x2 7171 | -6/Factory | Identified exit to Extension 7173 | -6/Factory | Loaded intel: 302 machine locations 7174 | -6/Factory | Loaded intel: 246 non-interactive machine locations 7182 | -6/Factory | Discovered new exit (range 10) 7191 | -6/Factory | Identified exit to Factory 7535 | -6/Factory | Discovered exit to Extension (range 10) 7537 | -6/Factory | Entered Extension 7538 | -6/Extension | Loaded intel: 32 machine locations 7579 | -6/Extension | Rescued a captive Derelict 7581 | -6/Extension | Rescued a captive Derelict 7607 | -6/Extension | Rescued a captive Derelict 7620 | -6/Extension | Rescued A7 7652 | -6/Extension | Build established: Sprinter 7752 | -6/Extension | Spotted B-75 Beast 7801 | -6/Extension | Identified exit to Cetus 7970 | -6/Extension | Build established: Commander-Sprinter 8053 | -6/Extension | Spotted B-75 Beast 8062 | -6/Extension | Allies destroyed B-75 Beast 8075 | -6/Extension | Allies destroyed B-75 Beast 8079 | -6/Extension | Discovered exit to Factory (range 3) 8098 | -6/Extension | Rescued a captive Derelict 8112 | -6/Extension | Disrupted transfer network 8265 | -6/Extension | Discovered exit to Factory (range 10) 8314 | -6/Extension | Extracted ID and sensor layout for unrecognized location from A7's data core 8344 | -6/Extension | Entered Factory 8344 | -5/Factory | Evolved 2 slots: Utility x2 8345 | -5/Factory | Loaded intel: 276 machine locations 8345 | -5/Factory | Identified exit to DSF 8347 | -5/Factory | Entered DSF 8348 | -5/DSF | Loaded intel: 2 machine locations 8356 | -5/DSF | Found Adv. Powered Armor 8368 | -5/DSF | Additional patrols routed to DSF 8375 | -5/DSF | Lost 7 allies 8422 | -5/DSF | Lost 3 parts (1p2u) 8560 | -5/DSF | Sterilization system engaged 8580 | -5/DSF | Ambient heat levels rising (+10) 8595 | -5/DSF | Ambient heat levels rising (+10) 8604 | -5/DSF | Crushed by falling debris 8604 | -5/DSF | System corruption reached 10% 8610 | -5/DSF | Ambient heat levels rising (+10) 8625 | -5/DSF | Ambient heat levels rising (+10) 8639 | -5/DSF | Lost 6 parts (1p4n1u) 8640 | -5/DSF | Ambient heat levels rising (+10) 8655 | -5/DSF | Ambient heat levels rising (+10) 8670 | -5/DSF | Ambient heat levels rising (+10) 8685 | -5/DSF | Ambient heat levels rising (+10) 8692 | -5/DSF | Discovered new exit (range 14) 8696 | -5/DSF | Identified exit to Factory 8696 | -5/DSF | Entered Factory 8696 | -4/Factory | Evolved 2 slots: Power x1, Propulsion x1 8697 | -4/Factory | Loaded intel: 283 machine locations 8861 | -4/Factory | Fabricated Fusion Bomb Launcher? 8941 | -4/Factory | Build established: Scavenger-Sprinter 9260 | -4/Factory | Sucked down chute 9260 | -4/Factory | Entered Waste 9262 | -4/Waste | Spotted C-40 Crusher 9264 | -4/Waste | Spotted C-40 Crusher 9264 | -4/Waste | Spotted C-40 Crusher 9267 | -4/Waste | Spotted C-40 Crusher 9268 | -4/Waste | Spotted C-40 Crusher 9269 | -4/Waste | Discovered new exit (range 12) 9272 | -4/Waste | Identified exit to Factory 9272 | -4/Waste | Entered Factory 9273 | -4/Factory | Loaded intel: 235 machine locations 9437 | -4/Factory | Spotted B-86 Titan 9453 | -4/Factory | Identified exit to Upper Caves 9463 | -4/Factory | Discovered new exit (range 6) 9463 | -4/Factory | Identified exit to Research 9464 | -4/Factory | Entered Research 9464 | -3/Research | Evolved 2 slots: Propulsion x1, Utility x1 9465 | -3/Research | Loaded intel: 110 machine locations 9530 | -3/Research | Discovered new exit (range 13) 9539 | -3/Research | Identified exit to Quarantine 9540 | -3/Research | Entered Quarantine 9541 | -3/Quarantine | Loaded intel: 61 machine locations 9650 | -3/Quarantine | Discovered new exit (range 12) 9654 | -3/Quarantine | Identified exit to Research 9684 | -3/Quarantine | Found Alien Artifact 9684 | -3/Quarantine | Identified Core Reset Matrix 9684 | -3/Quarantine | Used Core Reset Matrix 9688 | -3/Quarantine | Detected hypermatrix surge 9688 | -3/Quarantine | Sensed 11 artifacts in vicinity 9717 | -3/Quarantine | Found Hpw. Transdimensional Reconstructor 9751 | -3/Quarantine | Spotted Fortress 9767 | -3/Quarantine | Lost 10 parts (4n6u) 9781 | -3/Quarantine | Discovered new exit (range 6) 9781 | -3/Quarantine | Discovered new exit (range 6) 9782 | -3/Quarantine | Identified exit to Section 7 9784 | -3/Quarantine | Identified exit to Protoforge 9786 | -3/Quarantine | Entered Section 7 9787 | -3/Section 7 | Detected hypermatrix surge 9787 | -3/Section 7 | Sensed 22 artifacts in vicinity 9825 | -3/Section 7 | Spotted B-86 Titan 9869 | -3/Section 7 | Discovered exit to Research (range 16) 9890 | -3/Section 7 | Found Integrity Redistributor 9904 | -3/Section 7 | Spotted Alpha 7 9905 | -3/Section 7 | Spotted Alpha 7 9924 | -3/Section 7 | Spotted Executioner 9925 | -3/Section 7 | Spotted Executioner 9962 | -3/Section 7 | Build established: Mutant 9973 | -3/Section 7 | Spotted Executioner 9975 | -3/Section 7 | Spotted Executioner 9977 | -3/Section 7 | Integrated with Sigix Exoskeleton 9988 | -3/Section 7 | Destroyed Executioner 9993 | -3/Section 7 | Core integrity fell below 50% 9995 | -3/Section 7 | Destroyed Executioner 10004 | -3/Section 7 | Found Prototype Processor 10005 | -3/Section 7 | Identified Exp. Core Analyzer 10006 | -3/Section 7 | Found Exp. Core Analyzer 10034 | -3/Section 7 | Spotted Striker 10035 | -3/Section 7 | Spotted Striker 10104 | -3/Section 7 | Destroyed Striker 10107 | -3/Section 7 | Destroyed Striker 10136 | -3/Section 7 | Found Sigix Sheargun 10138 | -3/Section 7 | Found Sigix Sheargun 10144 | -3/Section 7 | Spotted Striker 10144 | -3/Section 7 | Spotted Striker 10155 | -3/Section 7 | Sigix Exoskeleton integrity reduced to 80% 10161 | -3/Section 7 | Found Sigix Shearcannon 10164 | -3/Section 7 | Destroyed Striker 10171 | -3/Section 7 | Destroyed Striker 10195 | -3/Section 7 | Intercept squad dispatched 10199 | -3/Section 7 | Spotted Striker 10199 | -3/Section 7 | Spotted Executioner 10199 | -3/Section 7 | Spotted Investigator 10201 | -3/Section 7 | Scanned by Researcher 10206 | -3/Section 7 | Destroyed Executioner 10206 | -3/Section 7 | Destroyed Investigator 10208 | -3/Section 7 | Destroyed Striker 10211 | -3/Section 7 | Spotted Tracker 10217 | -3/Section 7 | Destroyed Tracker 10219 | -3/Section 7 | Core integrity fell below 20% 10228 | -3/Section 7 | Warped through subspace 10238 | -3/Section 7 | Sigix Exoskeleton integrity reduced to 60% 10242 | -3/Section 7 | Destroyed Executioner 10244 | -3/Section 7 | Destroyed Executioner 10263 | -3/Section 7 | Spotted Combat Programmer 10265 | -3/Section 7 | Destroyed 10 combat bots 10296 | -3/Section 7 | Build established: Alien-Sigix 10306 | -3/Section 7 | Used Integrity Redistributor, redistributed integrity to core (+293) 10307 | -3/Section 7 | Sigix Exoskeleton integrity reduced to 40% 10307 | -3/Section 7 | Spotted Executioner 10307 | -3/Section 7 | Spotted Striker 10308 | -3/Section 7 | Spotted Investigator 10315 | -3/Section 7 | Spotted B-99 Colossus 10335 | -3/Section 7 | Found Integrity Redistributor 10336 | -3/Section 7 | Found Integrity Redistributor 10338 | -3/Section 7 | Found Integrity Redistributor 10357 | -3/Section 7 | Found Core Reset Matrix 10370 | -3/Section 7 | Sigix Exoskeleton integrity reduced to 20% 10378 | -3/Section 7 | Destroyed Investigator 10389 | -3/Section 7 | Destroyed Executioner 10395 | -3/Section 7 | Destroyed B-99 Colossus 10435 | -3/Section 7 | Destroyed 17 combat bots 10452 | -3/Section 7 | Spotted Executioner 10461 | -3/Section 7 | Destroyed Executioner 10474 | -3/Section 7 | Spotted Striker 10474 | -3/Section 7 | Used Integrity Redistributor, redistributed integrity to core (+5) 10475 | -3/Section 7 | Used Integrity Redistributor, redistributed integrity to core (+5) 10476 | -3/Section 7 | Spotted Executioner 10476 | -3/Section 7 | Spotted Striker 10476 | -3/Section 7 | Used Integrity Redistributor, redistributed integrity to core (+5) 10476 | -3/Section 7 | Destroyed by Alpha 7 with Enhanced Gamma Rifle Last Messages --------------- 10474_ P-80 Master unfolds itself. 10474_ H-77 Assassin unfolds itself. 10474_ Striker unfolds itself. 10474_ E-15 Imp unfolds itself. 10474_ Integrity redistributed to core (+5). 10474_ C-30 ARC bursts open, deploying its payload. 10474_ G-73 Enforcer unfolds itself. 10474_ G-67 Veteran unfolds itself. 10474_ L-61 Swordsman unfolds itself. 10475_ System corrupted: Matter fused (-9). 10475_ Integrity redistributed to core (+5). 10475_ Penetrated by Slug. 10475_ Slug penetrates Wall. 10476_ C-30 ARC bursts open, deploying its payload. 10476_ Executioner unfolds itself. 10476_ H-77 Assassin unfolds itself. 10476_ Striker unfolds itself. 10476_ E-15 Imp unfolds itself. 10476_ Knocked back. 10476_ Integrity redistributed to core (+5). Map ----- +----------------------------------------------------+ | ??????????????# #########" " " | | ??????????????# #########" """""" " | | ??????????????# #########" """"""""" " | | ??????????????# #########" " """""" | | ??????????????# #?#######" "%" " | | ??????????????# #???#####" " "%" | | ?????????###??#= #????####" """"""" | | ?????????""""?# #??????##" """"""""" | | ????????""""" # #?#######" """""" "" | | ????# """"""" # #########" " | | ????# / #########" """ | | ????# ! # #########" " | | ????# * # #########" | | ????# # #########" | | ????# # #########" "" | | ????########### #########" """" | | ????????? ## ######### """" "" | | ????????" T ## #########" """" "" """ | | ????????" ## #########"" """ | | ???????? ## #########""" " " " | | ??????? = ## #########""" """" " | | ???????! Y# ######### " """ """ "" | | ###+########### ####### # """""" | | ; [!%! | | h ; 7 !w=! | | """" "" pK e X =%! """"" | | """"""" EKe /% *=! """" | | # """" "" glg%C##### # 7 """ | | # = ]l h #######"" """ | | # " C #######""" | | # " i CC C#######""" | | # " """ C #######"" | | # #######" | | + ####### """" """"" = | | ##+##### ####### """""""""""" != | | #??# ########################### ## | | #??# ########################### ## | | """ #??T ############################### | | """ #?## ############################### | | """ ##?# ############################### | | """ #?# ######################## ###### | | """ ##?######## ####################### ##### | | """ #?????????? ####################### #### | | """ #?????????? ############################### | | #??????????? ##################### == | | #???????????? ##################### [ | | !#??????????????##################### %######## | | #####??????????????##################### !######## | | #????????!???????? ################# # ######## | | #??????????????????##############" """ """"#### | +----------------------------------------------------+ Best States ------------- Heat Dissipation 106 Coolant Potential 65 Energy Generation 61 Energy Capacity 1775 Matter Stores 300 Matter Capacity 300 Sight Range 23 Robot Scan Range 16 Terrain Scan Density 10 ECM Strength 1 Power Amplification 30 Additional Mass Support 9 Armor Coverage 525 Resistance: KI 50 Resistance: TH 50 Resistance: EX 50 Resistance: EM 50 Resistance: I 50 Resistance: S 50 Resistance: P 50 Evasion (%) 69 Melee Accuracy 8 Recoil Reduction 2 Offensive Hacking 10 Defensive Hacking 10 Authchip Count 1 Item Schematics ----------------- None Robot Schematics ------------------ None Fabricated ------------ Fusion Bomb Launcher | x1 | -4/Factory | Preloaded Repaired ---------- Nothing Alien Tech Used ----------------- Core Reset Matrix Sigix Exoskeleton Sigix Sheargun Sigix Shearcannon High-powered Transdimensional Reconstructor Integrity Redistributor Achievements -------------- Signature Confirmed Challenges ------------ None Game ------ Seed CannonGuidanceShredder Manual? 0 Play Time 01:59:23 Cumulative 297.0 hours Start 2025.09.17 @ 12:36:41 End 2025.09.17 @ 14:59:54 Sessions 1 Manual Loads 0 Difficulty Rogue Special Mode None Game No. 418 Rogue 418 Adventurer 0 Explorer 0 Win Type - Total 9 Types 5/0/1/2/1/0/0/0/0/0 Lore% 86 Gallery% 81 Achievement% 64 Wizard Run 0 Options --------- Layout 0 ASCII 0 Keyboard 0 Movement Mouse Keybinds 0 Fullscreen 1 Font 24/Tamsyn Map View 76x50 Zoom Use 0% Tactical HUD 1 Map Filters NONE Filters NONE Steam 1 RUN: e7abf4ab-c939-4d11-bc71-587d21b50875